bitfinex/quotes_BTCUSD_20250206
["timestamp","ask_amount","ask_price","bid_price","bid_amount"]
[1738883383281,0.155883,96847.0,96840.0,0.154893]
[1738883383465,0.00985898,96843.0,96838.0,0.206528]
[1738883383790,0.001,96845.0,96839.0,0.154895]
[1738883384293,0.00985964,96844.0,96839.0,0.154895]
[1738883384641,0.001,96847.0,96836.0,0.206534]
[1738883384843,0.00985898,96843.0,96837.0,0.154897]
[1738883385043,0.154886,96845.0,96838.0,0.154897]
[1738883385289,0.001,96847.0,96841.0,0.251722]
[1738883385290,0.00985833,96842.0,96841.0,0.251722]
[1738883385490,0.0011068,96847.0,96846.0,0.154885]
[1738883385663,0.0011068,96847.0,96846.0,0.25738865]
[1738883386824,0.0001068,96847.0,96846.0,0.25738865]
[1738883387234,0.0001068,96847.0,96846.0,0.154885]
[1738883387634,0.0001068,96847.0,96841.0,0.05932006]
[1738883387836,0.154891,96842.0,96841.0,0.01412006]
[1738883388043,0.206513,96846.0,96829.0,0.13251166]
[1738883388241,0.154904,96834.0,96829.0,0.08301166]
[1738883388435,0.206535,96836.0,96829.0,0.08301166]
[1738883388633,0.00985582,96834.0,96829.0,0.08301166]
[1738883388829,0.00985582,96834.0,96829.0,0.23792266]
[1738883389237,0.154899,96837.0,96829.0,0.23792266]
[1738883389435,0.00985582,96834.0,96829.0,0.23792266]
[1738883389642,0.20652,96843.0,96832.0,0.01355038]
[1738883389838,0.00985582,96834.0,96833.0,0.15579115]
[1738883390050,0.154894,96841.0,96833.0,0.15579115]
[1738883390254,0.20652,96843.0,96833.0,0.00088715]
[1738883390490,0.2076188,96847.0,96834.0,0.154904]
[1738883390491,0.00985977,96840.0,96834.0,0.154904]
[1738883390636,0.00986109,96842.0,96833.0,0.00188715]
[1738883390849,0.16475511,96839.0,96833.0,0.00088715]
[1738883391045,0.00985911,96839.0,96834.0,0.154904]
[1738883391297,0.002,96841.0,96837.0,0.154898]
[1738883391762,0.00985977,96840.0,96837.0,0.154898]
[1738883391966,0.00985977,96840.0,96835.0,0.154902]
[1738883393398,0.002,96839.0,96835.0,0.154902]
[1738883393617,0.01085911,96839.0,96835.0,0.154902]
[1738883393749,0.154891,96842.0,96835.0,0.154902]
[1738883393949,0.00985845,96838.0,96835.0,0.154902]
[1738883394151,0.002,96840.0,96835.0,0.154902]
[1738883394350,0.0098578,96837.0,96835.0,0.154902]
[1738883394725,0.154891,96842.0,96835.0,0.154902]
[1738883394856,0.00985714,96836.0,96835.0,0.154902]
[1738883395542,0.157891,96842.0,96835.0,0.154902]
[1738883395843,0.00985714,96836.0,96835.0,0.154902]
[1738883395975,0.157891,96842.0,96835.0,0.154902]
[1738883396199,0.00985714,96836.0,96835.0,0.154902]
[1738883396401,0.001,96837.0,96835.0,0.154902]
[1738883396804,0.00985714,96836.0,96835.0,0.154902]
[1738883397003,0.00985714,96836.0,96833.0,0.00088715]
[1738883397208,0.154894,96840.0,96833.0,0.15579215]
[1738883397432,0.00985648,96835.0,96833.0,0.15579215]
[1738883397632,0.154894,96840.0,96833.0,0.15579215]
[1738883397836,0.154894,96840.0,96833.0,0.00088715]
[1738883397837,0.16475982,96834.0,96833.0,0.00088715]
[1738883400162,0.16475982,96834.0,96833.0,0.00188715]
[1738883400587,0.00985582,96834.0,96833.0,0.00188715]
[1738883401025,0.16475982,96834.0,96833.0,0.00088715]
[1738883401241,0.16475982,96834.0,96833.0,0.00188715]
[1738883401676,0.00985582,96834.0,96833.0,0.23599215]
[1738883401881,0.00985582,96834.0,96833.0,0.28349215]
[1738883402081,0.0001068,96847.0,96843.0,0.154889]
[1738883402225,0.0001068,96847.0,96841.0,0.154893]
[1738883402469,0.0098545,96846.0,96839.0,0.154895]
[1738883402699,0.0201913,96846.0,96837.0,0.154898]
[1738883402918,0.0201913,96846.0,96839.0,0.154896]
[1738883403125,0.0201913,96846.0,96833.0,0.00088715]
[1738883403349,0.12911584,96843.0,96833.0,0.00088715]
[1738883403548,0.154904,96834.0,96833.0,0.00088715]
[1738883404070,0.00985846,96834.0,96833.0,0.14293207]
[1738883404392,0.0103368,96842.0,96841.0,0.154893]
[1738883405184,0.0103368,96842.0,96841.0,0.38789665]
[1738883405395,0.0103368,96842.0,96841.0,0.56089665]
[1738883405612,0.0103368,96842.0,96841.0,0.59282936]
[1738883405819,0.0103368,96842.0,96841.0,0.59371643]
[1738883406164,0.0103368,96842.0,96841.0,0.69622008]
[1738883406879,0.0001068,96850.0,96846.0,0.154885]
[1738883407155,0.0001068,96850.0,96846.0,0.25842099]
[1738883407356,0.0001068,96850.0,96846.0,0.25827568]
[1738883409886,0.0001068,96850.0,96846.0,0.26027568]
[1738883410119,0.0001068,96850.0,96846.0,0.10539068]
[1738883410454,0.0001068,96850.0,96846.0,0.15777203]
[1738883411202,0.0001068,96850.0,96846.0,0.00288703]
[1738883411929,0.1549898,96847.0,96846.0,0.00288703]
[1738883412337,0.16486059,96847.0,96846.0,0.00288703]
[1738883412712,0.24276059,96847.0,96846.0,0.00088703]
[1738883412919,0.24276059,96847.0,96846.0,0.00188703]
[1738883413237,0.24276059,96847.0,96846.0,0.00088703]
[1738883413631,0.34526424,96847.0,96846.0,0.00088703]
[1738883413978,0.34626424,96847.0,96846.0,0.00088703]
[1738883414529,0.54096424,96847.0,96846.0,0.00088703]
[1738883414944,0.154912,96829.0,96828.0,0.06512297]
[1738883415523,0.16481512,96829.0,96828.0,0.06512297]
[1738883415758,0.361464,96828.0,96820.0,0.0140304]
[1738883415962,0.154918,96826.0,96817.0,0.08301166]
[1738883416395,0.00990181,96827.0,96817.0,0.08301166]
[1738883416534,0.00990049,96825.0,96817.0,0.08301166]
[1738883416742,0.00990049,96825.0,96818.0,0.154928]
[1738883416944,0.206542,96833.0,96820.0,0.160926]
[1738883417129,0.154909,96831.0,96828.0,0.001]
[1738883417337,0.0001068,96847.0,96828.0,0.001]
[1738883417596,0.0001068,96847.0,96844.0,0.154888]
[1738883417803,0.0001068,96847.0,96842.0,0.15489]
[1738883418029,0.0001068,96847.0,96830.0,0.206547]
[1738883418231,0.0001068,96847.0,96842.0,0.154891]
[1738883418424,0.00991897,96846.0,96842.0,0.154891]
[1738883418637,0.0001068,96847.0,96842.0,0.154891]
[1738883418838,0.0011068,96847.0,96842.0,0.154891]
[1738883419095,0.00991897,96846.0,96840.0,0.154893]
[1738883419376,0.00991897,96846.0,96842.0,0.15489]
[1738883419678,0.0011068,96847.0,96842.0,0.15489]
[1738883420200,0.01091897,96846.0,96841.0,0.154891]
[1738883420341,0.01191897,96846.0,96842.0,0.15489]
[1738883420539,0.01191897,96846.0,96837.0,0.00071681]
[1738883420744,0.002,96846.0,96844.0,0.154887]
[1738883420941,0.001,96846.0,96844.0,0.154887]
[1738883421140,0.001,96846.0,96843.0,0.154889]
[1738883421726,0.001,96846.0,96839.0,0.00071679]
[1738883421926,0.002,96846.0,96840.0,0.206526]
[1738883422242,0.001,96846.0,96843.0,0.154889]
[1738883422439,0.001,96846.0,96841.0,0.00171678]
[1738883422650,0.001,96846.0,96844.0,0.154888]
[1738883422651,0.00991699,96845.0,96844.0,0.154888]
[1738883423039,0.001,96846.0,96845.0,0.154886]
[1738883423792,0.0001068,96847.0,96846.0,0.154885]
[1738883425129,0.15063195,96867.0,96855.0,0.154869]
[1738883425276,0.15077007,96867.0,96855.0,0.154869]
[1738883425479,0.00993338,96866.0,96855.0,0.154869]
[1738883426598,0.00993338,96866.0,96858.0,0.154865]
[1738883426794,0.01493338,96866.0,96858.0,0.154865]
[1738883427147,0.01493338,96866.0,96865.0,0.154854]
[1738883427297,0.005,96866.0,96865.0,0.154854]
[1738883428034,0.007,96866.0,96865.0,0.154854]
[1738883428232,0.002,96866.0,96865.0,0.154854]
[1738883428432,0.005,96866.0,96862.0,0.206479]
[1738883428613,0.005,96866.0,96865.0,0.154854]
[1738883428825,0.00013812,96867.0,96866.0,0.281053]
[1738883429051,0.00013812,96867.0,96866.0,0.40655665]
[1738883429426,0.00013812,96867.0,96866.0,0.38355665]
[1738883431059,0.00013812,96867.0,96866.0,0.38455665]
[1738883431316,0.00013812,96867.0,96866.0,0.38855665]
[1738883434156,0.00024492,96867.0,96866.0,0.38855665]
[1738883434720,0.00024492,96867.0,96866.0,0.31005665]
[1738883435596,0.00024492,96867.0,96866.0,0.0527]
[1738883435957,0.00024492,96867.0,96866.0,0.005]
[1738883437972,0.15509592,96867.0,96866.0,0.005]
[1738883438157,0.16469824,96867.0,96866.0,0.005]
[1738883438520,0.16469824,96867.0,96866.0,0.004]
[1738883439141,0.16469824,96867.0,96858.0,0.01290233]
[1738883439344,0.16469824,96867.0,96866.0,0.156853]
[1738883439345,0.00984724,96867.0,96866.0,0.156853]
[1738883439567,0.00984724,96867.0,96866.0,0.25935665]
[1738883439771,0.00024492,96867.0,96866.0,0.25735665]
[1738883439933,0.00024492,96867.0,96866.0,0.25935665]
[1738883441236,0.00024492,96867.0,96866.0,0.25735665]
[1738883441451,0.00024492,96867.0,96866.0,0.25935665]
[1738883441653,0.00024492,96867.0,96866.0,0.25835665]
[1738883442085,0.00024492,96867.0,96866.0,0.26235665]
[1738883444768,0.00024492,96867.0,96866.0,0.12081322]
[1738883445062,0.00024492,96867.0,96866.0,0.01830957]
[1738883445675,0.00984851,96867.0,96866.0,0.01830957]
[1738883445882,0.00024492,96867.0,96866.0,0.01830957]
[1738883446254,0.00024492,96867.0,96866.0,0.01853364]
[1738883447054,0.00984851,96867.0,96866.0,0.01853364]
[1738883447722,0.00024492,96867.0,96866.0,0.01853364]
[1738883447926,0.00024492,96867.0,96866.0,1.14216322]
[1738883448119,0.00022428,96880.0,96879.0,0.200532]
[1738883448320,0.00022428,96880.0,96879.0,0.30406763]
[1738883448528,0.00022428,96880.0,96879.0,0.30303565]
[1738883449085,0.00022428,96880.0,96879.0,0.32338614]
[1738883449285,0.00022428,96880.0,96879.0,0.41765975]
[1738883450675,0.00122428,96880.0,96879.0,0.42965975]
[1738883451199,0.00122428,96880.0,96879.0,0.33538614]
[1738883451890,0.00050783,96880.0,96879.0,0.33538614]
[1738883452338,0.00050783,96880.0,96879.0,0.34874078]
[1738883455639,0.0001068,96899.0,96886.0,0.154821]
[1738883456257,0.0001068,96899.0,96886.0,0.15523808]
[1738883456619,0.0001068,96899.0,96886.0,0.154821]
[1738883456829,0.0001068,96899.0,96886.0,0.15723808]
[1738883457030,0.0001068,96899.0,96886.0,0.156821]
[1738883457232,0.0001068,96899.0,96886.0,0.15723808]
[1738883457631,0.0001068,96899.0,96886.0,0.23202209]
[1738883457900,0.0001068,96899.0,96886.0,0.32163917]
[1738883458110,0.0001068,96899.0,96886.0,0.32122209]
[1738883458321,0.0001068,96899.0,96886.0,0.32163917]
[1738883458653,0.0001068,96899.0,96886.0,0.24643808]
[1738883458858,0.0001068,96899.0,96886.0,0.37194173]
[1738883459078,0.0001068,96899.0,96887.0,0.177819]
[1738883459269,0.0001068,96899.0,96887.0,0.28135453]
[1738883459452,0.0001068,96899.0,96887.0,0.28032265]
[1738883459657,4.043e-05,96888.0,96887.0,0.37940412]
[1738883459883,4.043e-05,96888.0,96887.0,0.35640412]
[1738883460112,4.043e-05,96888.0,96887.0,0.68050412]
[1738883460277,4.043e-05,96888.0,96887.0,0.68250412]
[1738883460856,4.043e-05,96888.0,96887.0,0.68850412]
[1738883462189,4.043e-05,96888.0,96887.0,0.58942265]
[1738883462966,4.043e-05,96888.0,96887.0,0.58966655]
[1738883463156,0.0001068,96899.0,96898.0,0.154801]
[1738883463355,0.00024497,96899.0,96898.0,0.25730465]
[1738883463557,0.00024497,96899.0,96898.0,0.2575081]
[1738883463756,0.00024497,96899.0,96898.0,0.00020345]
[1738883464366,0.00024497,96899.0,96898.0,0.00220345]
[1738883464564,0.00024497,96899.0,96898.0,0.15700445]
[1738883464906,0.00024497,96899.0,96898.0,0.13800445]
[1738883465309,0.00024497,96899.0,96895.0,0.154806]
[1738883465606,0.00024497,96899.0,96896.0,0.10250365]
[1738883465807,0.00024497,96899.0,96897.0,0.154803]
[1738883466008,0.00024497,96899.0,96898.0,0.155801]
[1738883466390,0.00024497,96899.0,96898.0,0.154801]
[1738883466750,0.00024497,96899.0,96898.0,0.15516948]
[1738883466954,0.00024497,96899.0,96898.0,0.15916948]
[1738883467286,0.00024497,96899.0,96898.0,0.15516948]
[1738883467487,0.00024497,96899.0,96898.0,0.16116948]
[1738883468578,0.00024497,96899.0,96898.0,0.00636848]
[1738883468779,0.00024497,96899.0,96898.0,0.16220137]
[1738883472317,0.00024497,96899.0,96898.0,0.00636848]
[1738883472951,0.0001068,96901.0,96900.0,0.17275503]
[1738883473751,0.0001068,96901.0,96900.0,0.54198165]
[1738883473904,0.0001068,96901.0,96900.0,0.62068165]
[1738883474387,0.0001068,96901.0,96900.0,0.62368165]
[1738883474566,0.0001068,96901.0,96900.0,0.17275503]
[1738883474861,0.0109246,96901.0,96900.0,0.17675503]
[1738883475217,0.1657216,96901.0,96900.0,0.17675503]
[1738883476175,0.1657216,96901.0,96900.0,0.17775503]
[1738883476730,0.1657216,96901.0,96900.0,0.17675503]
[1738883476942,0.1657216,96901.0,96900.0,0.17275503]
[1738883477157,0.1667216,96901.0,96900.0,0.17275503]
[1738883479977,0.26922525,96901.0,96900.0,0.17275503]
[1738883480177,0.34492525,96901.0,96900.0,0.17275503]
[1738883480429,0.39182525,96901.0,96900.0,0.17275503]
[1738883480641,0.39382525,96901.0,96900.0,0.17275503]
[1738883484338,0.1687216,96901.0,96900.0,0.17275503]
[1738883484545,0.0139246,96901.0,96900.0,0.17275503]
[1738883484789,0.1687216,96901.0,96900.0,0.17275503]
[1738883485010,0.1687216,96901.0,96900.0,0.15375503]
[1738883485757,0.1677216,96901.0,96900.0,0.15375503]
[1738883486323,0.1687216,96901.0,96900.0,0.15375503]
[1738883486656,0.1657216,96901.0,96900.0,0.15375503]
[1738883487097,0.02325685,96901.0,96900.0,0.15375503]
[1738883487461,0.02225685,96901.0,96900.0,0.15375503]
[1738883487796,0.02425685,96901.0,96900.0,0.15375503]
[1738883488669,0.02325685,96901.0,96900.0,0.15375503]
[1738883488798,0.02325685,96901.0,96900.0,0.33654781]
[1738883488799,0.02425685,96901.0,96900.0,0.33654781]
[1738883488998,0.01343905,96901.0,96900.0,0.33654781]
[1738883489751,0.01043905,96901.0,96900.0,0.30855303]
[1738883490040,0.01343905,96901.0,96900.0,0.28955303]
[1738883490280,0.01243905,96901.0,96900.0,0.28955303]
[1738883490485,0.0021068,96901.0,96900.0,0.28955303]
[1738883491094,0.0021068,96901.0,96900.0,0.49456033]
[1738883491095,0.0001068,96901.0,96900.0,0.49456033]
[1738883491300,0.0001068,96901.0,96900.0,0.49556033]
[1738883491467,0.0001068,96901.0,96900.0,0.49456033]
[1738883491702,0.0001068,96901.0,96900.0,0.40495127]
[1738883491928,0.0001068,96901.0,96900.0,0.14764962]
[1738883492531,0.0001068,96901.0,96900.0,0.14864962]
[1738883492864,0.0001068,96901.0,96900.0,0.15064962]
[1738883493231,0.0001068,96901.0,96900.0,0.14764962]
[1738883493433,0.0001068,96901.0,96900.0,0.30444762]
[1738883494292,0.0001068,96901.0,96900.0,0.3046719]
[1738883494693,0.0001068,96901.0,96900.0,0.3026719]
[1738883495237,0.0001068,96901.0,96900.0,0.1478739]
[1738883495443,0.0001068,96901.0,96900.0,0.13497931]
[1738883495839,0.0001068,96901.0,96900.0,0.13597931]
[1738883496020,0.0111255,96901.0,96900.0,0.13997931]
[1738883496220,0.0111255,96901.0,96900.0,0.13597931]
[1738883496489,0.0111255,96901.0,96900.0,0.13497931]
[1738883496490,0.1659225,96901.0,96900.0,0.13497931]
[1738883496765,0.2480225,96901.0,96900.0,0.13697931]
[1738883496904,0.2480225,96901.0,96900.0,0.13497931]
[1738883497106,0.2480225,96901.0,96900.0,0.13697931]
[1738883497511,0.2480225,96901.0,96900.0,0.13497931]
[1738883497512,0.25835475,96901.0,96900.0,0.13497931]
[1738883497710,0.5591584,96901.0,96900.0,0.13497931]
[1738883497916,0.5841584,96901.0,96900.0,0.13497931]
[1738883498370,0.5851584,96901.0,96900.0,0.13497931]
[1738883498829,0.9145584,96901.0,96900.0,0.13497931]
[1738883499523,0.9165584,96901.0,96900.0,0.13497931]
[1738883499705,0.9145584,96901.0,96900.0,0.13497931]
[1738883499881,0.9205584,96901.0,96900.0,0.11597931]
[1738883500082,0.9105584,96901.0,96900.0,0.11597931]
[1738883500685,0.9184784,96901.0,96900.0,0.11597931]
[1738883503411,0.9284784,96901.0,96900.0,0.11597931]
[1738883504953,0.9264784,96901.0,96900.0,0.09697931]
[1738883505153,0.9294784,96901.0,96900.0,0.09697931]
[1738883505350,0.9234784,96901.0,96900.0,0.09697931]
[1738883505509,1.02407691,96901.0,96900.0,0.09797931]
[1738883506974,1.01407691,96901.0,96900.0,0.09797931]
[1738883507922,0.9214784,96901.0,96900.0,0.09797931]
[1738883509319,0.8652584,96901.0,96900.0,0.09797931]
[1738883509520,0.8422584,96901.0,96900.0,0.09797931]
[1738883509732,0.7680784,96901.0,96900.0,0.09797931]
[1738883509937,0.7680784,96901.0,96900.0,0.07897931]
[1738883510137,0.6180784,96901.0,96900.0,0.07897931]
[1738883510854,0.50765475,96901.0,96900.0,0.07897931]
[1738883510998,0.18725475,96901.0,96900.0,0.07897931]
[1738883511399,0.33725475,96901.0,96900.0,0.07897931]
[1738883514947,0.33725475,96901.0,96900.0,0.05997931]
[1738883516465,0.4397584,96901.0,96900.0,0.05997931]
[1738883517222,0.4627584,96901.0,96900.0,0.05997931]
[1738883517638,0.4727584,96901.0,96900.0,0.05997931]
[1738883517841,0.4827584,96901.0,96900.0,0.05997931]
[1738883518244,0.50333788,96901.0,96900.0,0.05997931]
[1738883519147,0.50333788,96901.0,96900.0,0.03933931]
[1738883519587,0.347798,96900.0,96899.0,5.9e-07]
[1738883519797,0.45030165,96900.0,96899.0,5.9e-07]
[1738883519945,0.304822,96885.0,96884.0,0.06423653]
[1738883520152,0.40732565,96885.0,96884.0,0.0643747]
[1738883520393,0.41830519,96885.0,96884.0,0.0643747]
[1738883520567,0.41830519,96885.0,96884.0,0.00013817]
[1738883521208,0.42863744,96885.0,96884.0,0.00013817]
[1738883521786,0.43763744,96885.0,96884.0,0.00013817]
[1738883522000,0.44163744,96885.0,96884.0,0.00013817]
[1738883522611,0.43263744,96885.0,96884.0,0.00013817]
[1738883523216,0.42863744,96885.0,96884.0,0.00013817]
[1738883523432,0.43763744,96885.0,96884.0,0.00013817]
[1738883523655,0.44063744,96885.0,96884.0,0.00013817]
[1738883524007,0.43763744,96885.0,96884.0,0.00013817]
[1738883524659,0.43063744,96885.0,96884.0,0.00013817]
[1738883524858,0.27581544,96885.0,96874.0,0.06414983]
[1738883525061,0.304838,96875.0,96874.0,0.06414983]
[1738883525467,0.154851,96867.0,96866.0,0.04522407]
[1738883525847,0.16582059,96867.0,96866.0,0.04522407]
[1738883526372,0.01096959,96867.0,96866.0,0.04522407]
[1738883526797,0.154845,96871.0,96866.0,0.04522407]
[1738883527014,0.01096959,96867.0,96866.0,0.04522407]
[1738883527167,0.206456,96873.0,96866.0,0.04522407]
[1738883527351,0.01096959,96867.0,96866.0,0.04522407]
[1738883527553,0.01039875,96867.0,96866.0,0.04522407]
[1738883527825,0.02136834,96867.0,96866.0,0.04522407]
[1738883527955,0.01039875,96867.0,96866.0,0.04522407]
[1738883528354,0.02136834,96867.0,96866.0,0.12612407]
[1738883528569,0.01039875,96867.0,96866.0,0.12612407]
[1738883529692,0.02136834,96867.0,96866.0,0.12612407]
[1738883530101,0.17621934,96867.0,96866.0,0.12612407]
[1738883530851,0.17621934,96867.0,96866.0,0.04522407]
[1738883531704,0.17721934,96867.0,96866.0,0.04522407]
[1738883533000,0.17821934,96867.0,96866.0,0.04522407]
[1738883533823,0.17721934,96867.0,96866.0,0.04522407]
[1738883533992,0.17821934,96867.0,96866.0,0.04522407]
[1738883534751,0.17621934,96867.0,96866.0,0.04522407]
[1738883534954,0.17821934,96867.0,96866.0,0.04522407]
[1738883535387,0.17821934,96867.0,96866.0,0.04481691]
[1738883536505,0.02336834,96867.0,96866.0,0.04481691]
[1738883536844,0.17721934,96867.0,96866.0,0.04481691]
[1738883539732,0.154859,96862.0,96861.0,0.0809]
[1738883540008,0.16591588,96862.0,96861.0,0.0809]
[1738883540384,0.17624813,96862.0,96861.0,0.0809]
[1738883540581,0.02138913,96862.0,96858.0,0.0466]
[1738883540789,0.154864,96859.0,96858.0,0.0466]
[1738883541170,0.16591897,96859.0,96858.0,0.0466]
[1738883542005,0.17625122,96859.0,96858.0,0.0466]
[1738883542441,0.15488,96849.0,96848.0,0.1225]
[1738883542643,0.15488,96849.0,96848.0,0.0469]
[1738883542845,0.16591654,96849.0,96848.0,0.0469]
[1738883543186,0.17624879,96849.0,96848.0,0.0469]
[1738883546125,0.17817239,96849.0,96848.0,0.0469]
[1738883547043,0.02329239,96849.0,96848.0,0.0469]
[1738883547463,0.02329965,96849.0,96848.0,0.0469]
[1738883547987,0.02329965,96849.0,96848.0,0.0479]
[1738883548245,0.02329965,96849.0,96848.0,0.201781]
[1738883548365,0.02329965,96849.0,96848.0,0.277281]
[1738883548563,0.01033225,96849.0,96848.0,0.278281]
[1738883549049,0.01033225,96849.0,96848.0,0.1234]
[1738883550178,0.01033225,96849.0,96848.0,0.1224]
[1738883550383,0.01033225,96849.0,96848.0,0.1244]
[1738883550660,0.01033225,96849.0,96848.0,0.1224]
[1738883551173,0.01033225,96849.0,96848.0,0.1264]
[1738883551316,0.01033225,96849.0,96848.0,0.1274]
[1738883551740,0.01033225,96849.0,96848.0,0.282281]
[1738883553395,0.01033225,96866.0,96848.0,0.1274]
[1738883553632,0.01033225,96866.0,96857.0,0.154867]
[1738883553830,0.0110531,96865.0,96857.0,0.154867]
[1738883554041,0.01033225,96866.0,96857.0,0.154867]
[1738883554619,0.001,96866.0,96857.0,0.154867]
[1738883555003,0.003,96866.0,96857.0,0.154867]
[1738883555201,0.002,96866.0,96857.0,0.154867]
[1738883556353,0.00029078,96867.0,96857.0,0.154867]
[1738883556585,0.01405374,96866.0,96857.0,0.154867]
[1738883556731,0.01427802,96866.0,96857.0,0.154867]
[1738883556932,0.00022428,96866.0,96857.0,0.154867]
[1738883557272,0.00022428,96866.0,96857.0,0.155867]
[1738883557722,0.00022428,96866.0,96858.0,0.154865]
[1738883557926,0.00022428,96866.0,96860.0,0.0493]
[1738883558126,0.00022428,96866.0,96865.0,0.154854]
[1738883559691,0.00022428,96866.0,96865.0,0.155854]
[1738883559902,0.00022428,96866.0,96865.0,0.136854]
[1738883560277,0.00022428,96866.0,96865.0,0.001]
[1738883561378,0.15507728,96866.0,96865.0,0.001]
[1738883561698,0.16613736,96866.0,96865.0,0.001]
[1738883562545,0.154863,96860.0,96852.0,0.083]
[1738883562749,0.01105561,96859.0,96852.0,0.083]
[1738883562931,0.00122428,96866.0,96852.0,0.237875]
[1738883563127,0.01105944,96865.0,96852.0,0.237875]
[1738883563576,0.01105944,96865.0,96852.0,0.083]
[1738883563943,0.206478,96863.0,96852.0,0.085]
[1738883564154,0.154864,96860.0,96852.0,0.083]
[1738883564353,0.01105753,96862.0,96852.0,0.083]
[1738883564354,0.154873,96853.0,96852.0,0.083]
[1738883564558,0.154873,96853.0,96849.0,0.049]
[1738883564559,0.154878,96850.0,96849.0,0.049]
[1738883564710,0.01104986,96850.0,96849.0,0.049]
[1738883564931,0.154871,96855.0,96849.0,0.049]
[1738883565136,0.01105241,96854.0,96849.0,0.06100113]
[1738883565305,0.206468,96868.0,96849.0,0.06100113]
[1738883565505,0.01105944,96865.0,96849.0,0.06100113]
[1738883566059,0.154866,96858.0,96849.0,0.06100113]
[1738883566402,0.01105433,96857.0,96849.0,0.06100113]
[1738883567014,0.01033605,96857.0,96849.0,0.06100113]
[1738883567227,0.01105369,96856.0,96849.0,0.06200113]
[1738883567578,0.01105369,96856.0,96849.0,0.06100113]
[1738883568127,0.206477,96863.0,96849.0,0.06100113]
[1738883568300,0.01113837,96862.0,96849.0,0.06100113]
[1738883568511,0.154848,96869.0,96855.0,0.15487]
[1738883568888,0.01114029,96865.0,96856.0,0.154869]
[1738883569063,0.01114029,96865.0,96854.0,0.206496]
[1738883569263,0.01114029,96865.0,96858.0,0.154865]
[1738883569597,0.154842,96873.0,96859.0,0.154863]
[1738883569740,0.15,96879.0,96851.0,0.2866]
[1738883569944,0.15507728,96866.0,96852.0,0.135875]
[1738883570159,0.01113763,96865.0,96854.0,0.001]
[1738883570389,0.01113763,96865.0,96852.0,0.135875]
[1738883570705,0.01113763,96865.0,96851.0,0.0801]
[1738883570852,0.154862,96860.0,96859.0,0.001]
[1738883571228,0.1659968,96860.0,96859.0,0.001]
[1738883572143,0.15487,96855.0,96849.0,0.06100113]
[1738883572347,0.01113097,96854.0,96849.0,0.06100113]
[1738883572545,0.12911584,96860.0,96849.0,0.06100113]
[1738883572773,0.01113416,96859.0,96849.0,0.06100113]
[1738883573089,0.01113416,96859.0,96849.0,0.21588013]
[1738883573294,0.01113416,96859.0,96850.0,0.00103247]
[1738883573493,0.154863,96860.0,96849.0,0.06100113]
[1738883573693,0.154858,96863.0,96849.0,0.21888113]
[1738883573923,0.01113416,96859.0,96849.0,0.21888113]
[1738883574095,0.00022428,96866.0,96851.0,0.0779]
[1738883574315,0.00022428,96866.0,96857.0,0.278367]
[1738883574316,0.01113352,96858.0,96857.0,0.278367]
[1738883574442,0.00022428,96866.0,96865.0,0.154854]
[1738883574644,0.00022428,96866.0,96865.0,0.232754]
[1738883574844,0.00022428,96866.0,96865.0,0.213754]
[1738883575895,0.00022428,96866.0,96865.0,0.214754]
[1738883578151,0.00022428,96866.0,96865.0,0.0789]
[1738883579415,0.00022428,96866.0,96865.0,0.23478622]
[1738883579553,0.00022428,96866.0,96865.0,0.0789]
[1738883579749,0.00022428,96866.0,96865.0,0.001]
[1738883579954,0.15507728,96866.0,96857.0,0.1088]
[1738883580175,0.01113167,96865.0,96857.0,0.1208353]
[1738883580955,0.01113167,96865.0,96857.0,0.11966409]
[1738883581544,0.01113167,96865.0,96849.0,0.5381068]
[1738883581749,0.154878,96850.0,96849.0,0.0001068]
[1738883581964,0.166006,96850.0,96849.0,0.0001068]
[1738883583072,0.166006,96850.0,96849.0,0.0041068]
[1738883585068,0.166006,96850.0,96849.0,0.0031068]
[1738883585676,0.166006,96850.0,96849.0,0.0001068]
[1738883585881,0.167006,96850.0,96849.0,0.0001068]
[1738883586149,0.013128,96850.0,96849.0,0.0001068]
[1738883586276,0.012128,96850.0,96849.0,0.0001068]
[1738883586704,0.013128,96850.0,96849.0,0.0001068]
[1738883587279,0.012128,96850.0,96849.0,0.0001068]
[1738883587726,0.01214167,96850.0,96849.0,0.0011068]
[1738883588129,0.01114167,96850.0,96849.0,0.0011068]
[1738883588679,0.154861,96861.0,96849.0,0.0011068]
[1738883588885,0.154861,96861.0,96849.0,0.0001068]
[1738883589092,0.01114805,96860.0,96849.0,0.0001068]
[1738883589273,0.01114805,96860.0,96849.0,0.0021068]
[1738883589442,0.154869,96856.0,96849.0,0.0001068]
[1738883589642,0.154869,96856.0,96849.0,0.0011068]
[1738883589848,0.01114486,96855.0,96849.0,0.0011068]
[1738883590223,0.207481,96861.0,96849.0,0.0011068]
[1738883590438,0.01114422,96854.0,96849.0,0.0011068]
[1738883590610,0.154863,96860.0,96849.0,0.0011068]
[1738883590809,0.15486,96862.0,96849.0,0.0021068]
[1738883591012,0.01114742,96859.0,96849.0,0.0021068]
[1738883591369,0.01114869,96861.0,96852.0,0.154874]
[1738883591594,0.01114869,96861.0,96849.0,0.2076128]
[1738883591595,0.00022428,96866.0,96857.0,0.154867]
[1738883591767,0.001,96860.0,96857.0,0.154867]
[1738883591971,0.001,96860.0,96856.0,0.154868]
[1738883592171,0.00022428,96866.0,96850.0,0.045]
[1738883592345,0.154876,96852.0,96850.0,0.045]
[1738883592669,0.01114039,96851.0,96850.0,0.045]
[1738883592871,0.001,96861.0,96850.0,0.045]
[1738883593092,0.207482,96861.0,96850.0,0.045]
[1738883593298,0.12911584,96860.0,96849.0,0.0001068]
[1738883593520,0.154874,96853.0,96849.0,0.0001068]
[1738883593709,0.154875,96852.0,96849.0,0.0001068]
[1738883593875,0.01114103,96852.0,96850.0,0.002]
[1738883594294,0.154874,96853.0,96850.0,0.002]
[1738883594499,0.01114039,96851.0,96850.0,0.002]
[1738883594695,0.154874,96853.0,96850.0,0.002]
[1738883594920,0.01114039,96851.0,96850.0,0.002]
[1738883595141,0.154873,96854.0,96849.0,0.0001068]
[1738883595380,0.01114039,96851.0,96849.0,0.0001068]
[1738883595580,0.001,96860.0,96849.0,0.0001068]
[1738883595838,0.16601775,96850.0,96849.0,0.0001068]
[1738883596015,0.154878,96850.0,96849.0,0.0001068]
[1738883596219,0.16602457,96850.0,96849.0,0.0001068]
[1738883597886,0.01114657,96850.0,96849.0,0.0001068]
[1738883598057,0.16602457,96850.0,96849.0,0.0001068]
[1738883598502,0.16702457,96850.0,96849.0,0.0001068]
[1738883598679,0.16602457,96850.0,96849.0,0.0001068]